Cogmind - Beta 17 @@@ ROGUE MODE // 2026.07.14 @ 01:47:26 Player: Marienkos Result: Destroyed by G-34 Mercenary with Small Laser Performance ------------- Evolutions (1) 500 Regions Visited (3) 600 Robots Destroyed (23) 115 Value Destroyed (561) 561 Prototype IDs (0) 0 Alien Tech Used (0) 0 Bonus (0) 0 TOTAL SCORE: 1776 Bonus ------- None Cogmind --------- Core Integrity 0/400 Matter 132/300 Energy 99/100 System Corruption 2% Temperature Cool (6) Movement Core (50) Location -9/Materials Parts ------- > --- POWER (1) -------- (None) > --- PROPULSION (3) --- (None) > --- UTILITY (3) ------ Hacking Suite > --- WEAPON (2) ------- (None) > --- INVENTORY (5) ---- Light Deuterium Engine Light Deuterium Engine Terrain Scan Processor Light Assault Rifle Peak State ------------ > --- POWER ------------ Light Deuterium Engine > --- PROPULSION ------- Wheel Compact Wheel Compact Wheel > --- UTILITY ---------- Light Armor Plating Hacking Suite Hacking Suite > --- WEAPON ----------- Assault Rifle Rocket Launcher > --- INVENTORY -------- Light Deuterium Engine Light Deuterium Engine Terrain Scan Processor Light Assault Rifle Datajack [Rating: 17] Favorites ----------- Power Light Deuterium Engine Engine Light Deuterium Engine Propulsion Compact Wheel Wheel Compact Wheel Utility Light Armor Plating Device Recoil Stabilizer Hackware Hacking Suite Protection Light Armor Plating Weapon Assault Rifle Ballistic Gun Assault Rifle Launcher Rocket Launcher Special Melee Weapon Datajack Build | -11 -10 -10 -9 ------- Run | Yrd Mat Min Mat Slots Evolved 2 | . . . 2 Power . | . . . . Propulsion 1 | . . . 1 Utility 1 | . . . 1 Weapon . | . . . . Parts Attached 22 | 6 3 4 9 Power 4 | 1 . 2 1 Engine 4 | 1 . 2 1 Core . | . . . . Reactor . | . . . . Propulsion 6 | 2 1 . 3 Treads . | . . . . Leg . | . . . . Wheel 6 | 2 1 . 3 Hover . | . . . . Flight . | . . . . Utility 6 | . 2 1 3 Device 1 | . . . 1 Storage . | . . . . Processor . | . . . . Hackware 2 | . . . 2 Protection 3 | . 2 1 . Artifact . | . . . . Weapon 6 | 3 . 1 2 Energy Gun . | . . . . Energy Cannon . | . . . . Ballistic Gun 3 | 3 . . . Ballistic Cannon . | . . . . Launcher 2 | . . 1 1 Special Weapon . | . . . . Impact Weapon . | . . . . Slashing Weapon . | . . . . Piercing Weapon . | . . . . Special Melee Weapon 1 | . . . 1 Unidentified Prototypes . | . . . . Parts Lost 16 | . . 3 13 Power 2 | . . 1 1 Propulsion 6 | . . . 6 Utility 4 | . . 2 2 Weapon 4 | . . . 4 Highest Loss Streak 12 | . . 2 12 To Critical Strikes . | . . . . Average Backups 4 | 1 3 4 4 Power 1 | . 1 1 2 Propulsion . | . . 1 . Utility . | . . . . Weapon 1 | . 1 1 1 Tool/Special . | . . . . Unused Backups 5 | . . 1 4 Power 3 | . . . 3 Propulsion . | . . . . Utility 1 | . . . 1 Weapon 1 | . . 1 . Tool/Special . | . . . . Average Slot Usage (%) 92 | . 91 98 71 Engine 12 | . 14 13 8 Wheel 27 | . 28 28 22 Hackware 3 | . . . 17 Protection 21 | . 20 26 6 Ballistic Gun 21 | . 28 24 6 Launcher 3 | . . 3 8 Peak Build Rating 17 | 5 7 10 17 Average Rating 8 | 3 6 8 12 On Entrance 4 | . 5 7 7 Avg Prop Armor Cover (%) . | . . . . Naked Turns . | . . . . Heaviest Build 17 | 9 15 17 15 Greatest Support 42 | 32 32 26 42 Greatest Overweight (x) 1 | . . . 1 Average Overweight (x) . | . . . . Largest Inventory Capacity 5 | 5 5 5 5 Average Capacity 5 | 5 5 5 5 Most Carried 5 | 2 5 5 5 Average Carried 4 | 1 3 4 4 Final Capacity 5 | 5 5 5 5 Final Carried 5 | 2 5 4 4 Class Distribution -------------------- 88% | Mutant 11% | Hacker-Mutant Dominant Class ---------------- Mutant | -10/Materials Mutant | -10/Mines Hacker-Mutant | -9/Materials Resources | -11 -10 -10 -9 ----------- Run | Yrd Mat Min Mat Matter Collected 582 | 242 19 223 98 Remotely . | . . . . Salvage Created 535 | . 55 253 227 Parts 43 | . 9 7 27 Haulers Intercepted . | . . . . Recyclers Shooed 2 | . . . 2 Parts Field Recycled . | . . . . Retrieved Matter . | . . . . Parts Self-Destructed . | . . . . Prevented . | . . . . Parts Restored . | . . . . Kills | -11 -10 -10 -9 ------- Run | Yrd Mat Min Mat Combat Hostiles Destroyed 15 | . 1 6 8 Guns 6 | . 1 4 1 AOE 9 | . . 2 7 Classes Destroyed 7 | . 2 1 4 Worker 1 | . . . 1 Builder 3 | . . . 3 Recycler 1 | . . . 1 Watcher 3 | . 2 . 1 Swarmer 5 | . 1 . 4 Grunt 8 | . . 6 2 Sentry 2 | . . . 2 Best Kill Streak 9 | . 3 2 9 Combat Bots Only 4 | . 1 2 4 Max Kills in Single Turn 3 | . 1 1 3 Gunslinging . | . . . . Exploded 3 | . . 1 3 Melee . | . . . . Uniques/NPCs Destroyed . | . . . . Combat | -11 -10 -10 -9 -------- Run | Yrd Mat Min Mat Hostile Shots Fired 156 | . 20 36 100 Missed 45 | . 8 6 31 Hits 111 | . 12 30 69 Projectile 111 | . 12 30 69 Critical Strikes 1 | . . . 1 Damage Taken 1442 | . 93 458 891 Core 464 | . . 55 409 Absorbed by Shields . | . . . . Core Remaining (%) 89 | 100 . 78 . Volleys Fired 44 | . 5 20 19 Largest 2 | . 2 2 2 Hottest 53 | . 40 53 53 Shots Fired 79 | . 10 40 29 Gun 57 | . 10 37 10 Cannon . | . . . . Launcher 22 | . . 3 19 Special . | . . . . Kinetic 57 | . 10 37 10 Thermal . | . . . . Explosive 22 | . . 3 19 Electromagnetic . | . . . . Robot Hit Streak 10 | . 1 9 10 Robot Miss Streak 7 | . 6 7 5 Penetration Max . | . . . . Secondary Targets 1 | . . 1 . Max Gunslinging Chain 1 | . . 1 . Shots Hit Robots 47 | . 2 27 18 Core Hits 41 | . 3 11 27 Critical Kills . | . . . . Critical Parts Destroyed 1 | . . 1 . Critical Strikes 1 | . . 1 . Destroy 1 | . . 1 . Melee Attacks 1 | . . . 1 Impact . | . . . . Slashing . | . . . . Piercing . | . . . . Sneak Attacks . | . . . . Combat Hostiles . | . . . . Follow-up Attacks . | . . . . Damage Inflicted 1713 | . 39 486 1188 Guns 467 | . 39 341 87 Cannons . | . . . . Explosions 1233 | . . 141 1092 Melee . | . . . . Ramming 13 | . . 4 9 Kinetic 467 | . 39 341 87 Thermal . | . . . . Explosive 1233 | . . 141 1092 Electromagnetic . | . . . . Impact . | . . . . Slashing . | . . . . Piercing . | . . . . Highest Corruption 2 | . . . 2 Average Corruption 2 | . . . 2 Corruption Purged . | . . . . Corruption Blocked . | . . . . Overload Shots . | . . . . Overflow Damage 28 | . . . 28 Projectiles . | . . . . Explosions 28 | . . . 28 Melee . | . . . . Knockbacks . | . . . . Impact . | . . . . Kinetic . | . . . . Secondary . | . . . . Self-Inflicted Damage 163 | . . 74 89 Shots 5 | . . 2 3 Rammed 4 | . . 2 2 Targets Rammed 4 | . . 2 2 Kicked . | . . . . Crushed . | . . . . Highest Temperature 102 | . . 102 16 Average Temperature 36 | . . 45 6 Received Heat Transfer 465 | . . 216 249 Siege Activations . | . . . . Martial Activations . | . . . . Shielding Activations . | . . . . Robots Disrupted . | . . . . Combat Hostiles . | . . . . Robots Corrupted . | . . . . Combat Hostiles . | . . . . Parts Fried . | . . . . Impact Corruptions . | . . . . Robots Melted . | . . . . Combat Hostiles . | . . . . Parts Melted . | . . . . Heat Transferred . | . . . . Parts Sabotaged . | . . . . Parts Stolen . | . . . . Parts Stripped . | . . . . Power Chain Reactions . | . . . . Alert | -11 -10 -10 -9 ------- Run | Yrd Mat Min Mat Maximum Alert Level . | . . . . Low Security (%) 100 | 100 100 100 100 Level 1 . | . . . . Level 2 . | . . . . Level 3 . | . . . . Level 4 . | . . . . Level 5 . | . . . . High Security . | . . . . Max Security . | . . . . Peak Influence 150 | . 27 73 150 Initial 21 | . . 6 21 Average 17 | . 1 12 57 Influence Increases 609 | . 46 210 353 Destroy 0b10 Robot/C 300 | . 20 120 160 Destroy 0b10 Robot/NC 40 | . 10 . 30 Destroy Leader 76 | . 4 30 42 Allied During Kill 12 | . . 8 4 Successful Hack 19 | . 12 . 7 Disable Machine 60 | . . 30 30 Destroy Structure 87 | . . 22 65 Lose Combat Pursuer 15 | . . . 15 Influence Decreases 473 | . 29 172 272 Entered New Map 45 | . . 11 34 Time Decay 248 | . 29 131 88 Lost Part 160 | . . 30 130 Lost Ally 20 | . . . 20 Squads Dispatched 6 | . 1 2 3 Investigation 4 | . . 2 2 Extermination . | . . . . Reinforcement 2 | . 1 . 1 Assault . | . . . . Garrison . | . . . . Intercept . | . . . . Searches Triggered . | . . . . Construction Impeded 1 | . . . 1 Haulers Reinforced . | . . . . Active Scanning Responses . | . . . . Cargo Convoy Interrupts . | . . . . Stealth | -11 -10 -10 -9 --------- Run | Yrd Mat Min Mat Distress Signals 5 | . 1 . 4 Communications Jammed . | . . . . Distress Signals . | . . . . Times Spotted 27 | . 7 6 14 Peak Tracking Total 8 | . 5 2 8 Tactical Retreats 1 | . . . 1 Traps | -11 -10 -10 -9 ------- Run | Yrd Mat Min Mat Traps Triggered . | . . . . Indirectly . | . . . . Trap Hack Attempts . | . . . . Triggered . | . . . . Disarmed . | . . . . Reprogrammed . | . . . . Reused . | . . . . Traps Extracted . | . . . . Installed . | . . . . Triggered . | . . . . Machines | -11 -10 -10 -9 ---------- Run | Yrd Mat Min Mat Machines Disabled 4 | . . 2 2 Max in Single Turn 2 | . . 2 1 Machines Repaired . | . . . . Machines Dismantled . | . . . . Machines Sabotaged . | . . . . Overloaded Fab Kills . | . . . . Hacking | -11 -10 -10 -9 --------- Run | Yrd Mat Min Mat Machines Accessed 7 | . 2 2 3 Terminals 6 | . 2 1 3 Fabricators . | . . . . Repair Stations . | . . . . Recycling Units . | . . . . Scanalyzers . | . . . . Garrison Access . | . . . . Total Hacks 19 | . 4 4 11 Successful 6 | . 2 1 3 Failed 13 | . 2 3 8 Catastrophic 4 | . 1 1 2 Database Lockouts . | . . . . Manual 13 | . 4 . 9 Terminals 18 | . 4 3 11 Fabricators . | . . . . Repair Stations . | . . . . Recycling Units . | . . . . Scanalyzers . | . . . . Garrison Access . | . . . . Terminal Hacks 6 | . 2 1 3 Open Door 1 | . . 1 . Level Access Points 1 | . . . 1 Branch Access Points 2 | . 1 . 1 Emergency Access Points 1 | . 1 . . Dispatch Records 1 | . . . 1 Fabricator Hacks . | . . . . Repair Station Hacks . | . . . . Recycling Unit Hacks . | . . . . Scanalyzer . | . . . . Garrison Access Hacks . | . . . . Unauthorized Hacks . | . . . . Terminals . | . . . . Fabricators . | . . . . Repair Stations . | . . . . Recycling Units . | . . . . Scanalyzers . | . . . . Garrison Access . | . . . . Data Cores Recovered . | . . . . Used . | . . . . Hacking Detections 5 | . 1 1 3 Full Trace Events 4 | . . 1 3 Feedback Events . | . . . . Feedback Blocked . | . . . . Robot Schematics Acquired . | . . . . Robots Built . | . . . . Authchips . | . . . . Time . | . . . . Total Robot Build Rating . | . . . . Part Schematics Acquired . | . . . . Parts Built . | . . . . Authchips . | . . . . Time . | . . . . Total Part Build Rating . | . . . . Part Studies Acquired . | . . . . Parts Repaired . | . . . . Time . | . . . . Parts Recycled . | . . . . Recycled Matter . | . . . . Retrieved Matter . | . . . . Retrieved Components . | . . . . Parts Scanalyzed . | . . . . Part Schematics Acquired . | . . . . Parts Damaged . | . . . . Bothacking | -11 -10 -10 -9 ------------ Run | Yrd Mat Min Mat Used RIF Installer . | . . . . Robots Hacked 1 | . . . 1 Non-combat . | . . . . Combat 1 | . . . 1 Robot Hacks Applied 1 | . . . 1 parse_system 1 | . . . 1 Relay Couplers Released . | . . . . Fabnet Peak Effective % . | . . . . Robots Rewired . | . . . . Allies Hacked . | . . . . Hacks Repelled . | . . . . Allies | -11 -10 -10 -9 -------- Run | Yrd Mat Min Mat Total Allies 3 | . . 3 . Largest Group 3 | . . 3 1 Highest-Rated Group 40 | . . 40 16 Highest-Rated Ally 16 | . . 16 16 Total Orders . | . . . . Ally Attacks 8 | . . 1 7 Total Damage 61 | . . 15 46 Kills . | . . . . Allies Corrupted . | . . . . Allies Melted . | . . . . Intel | -11 -10 -10 -9 ------- Run | Yrd Mat Min Mat Active Infowar (turns) . | . . . . Robot Analysis Total . | . . . . Derelict Logs Recovered 1 | . . 1 . Drone Launches . | . . . . Drone Recoveries . | . . . . Exploration | -11 -10 -10 -9 ------------- Run | Yrd Mat Min Mat Turns Passed 1393 | 49 265 846 233 Spaces Moved 1299 | 41 231 822 205 Core 68 | 2 . . 66 Treads . | . . . . Legs . | . . . . Wheels 1231 | 39 231 822 139 Hover . | . . . . Flight . | . . . . Fastest Speed 50 | 50 90 90 50 Average Speed 89 | 97 96 90 77 Slowest Speed 100 | 100 100 90 100 Overloaded Moves . | . . . . Propulsion Burnouts . | . . . . Robots Hopped . | . . . . Potential Cave-ins . | . . . . Cave-ins Triggered . | . . . . Exploration Rate (%) 36 | 4 26 95 22 Regions Visited 3 Branch Regions 1 Pre-discovered Areas . | . . . . Known Exits Taken 1 | . 1 . . Unknown Exits Taken 2 | 1 . 1 . Scrap Searched 1 | . . 1 . Spaces Dug . | . . . . Terrain Destroyed 105 | . . 30 75 Melee . | . . . . Projectile . | . . . . AOE 105 | . . 30 75 Terrain Rammed . | . . . . Walls Destroyed . | . . . . Machines Disabled . | . . . . Actions | -11 -10 -10 -9 --------- Run | Yrd Mat Min Mat Total 1443 | 47 260 889 247 Wait 59 | . 20 38 1 Move 1296 | 40 230 821 205 Hop . | . . . . Pick Up 8 | 1 2 1 4 Fast Attach 16 | 5 2 2 7 Attach 4 | . . 2 2 Detach 2 | . . 1 1 Swap 3 | 1 1 . 1 Drop 6 | . . 2 4 Fire 44 | . 5 20 19 Melee 1 | . . . 1 Ram 4 | . . 2 2 Kick . | . . . . Crush . | . . . . Escape Stasis . | . . . . Rewire . | . . . . Trap . | . . . . Miscellaneous . | . . . . Route ------- -11/Scrapyard -10/Materials (discovered 2 exits: *Min x2) -10/Mines (discovered 3 exits: *Mat x2 / [*Sub]) -9/Materials (discovered 5 exits: Mat x3 / Min x2) History --------- Turn | Location | Event 22 | -11/Scrapyard | Discovered new exit (range 16) 50 | -11/Scrapyard | Entered Materials 247 | -10/Materials | Identified exit to Mines 311 | -10/Materials | Build established: Mutant 315 | -10/Materials | Entered Mines 387 | -10/Mines | Discovered new exit (range 5) 493 | -10/Mines | Met a Derelict shopkeep closing up shop 659 | -10/Mines | Discovered new exit (range 16) 734 | -10/Mines | Received a Rocket Launcher from a helpful Derelict 823 | -10/Mines | Learned location of 1 exit from Materials 875 | -10/Mines | Discovered new exit (range 6) 1044 | -10/Mines | Assisted by bots powering up and referring to "LRC-V3" 1161 | -10/Mines | Entered Materials 1161 | -9/Materials | Accompanied by 1 ally 1161 | -9/Materials | Evolved 2 slots: Propulsion x1, Utility x1 1162 | -9/Materials | Identified exit to Materials 1226 | -9/Materials | Identified exit to Mines 1348 | -9/Materials | Core integrity fell below 50% 1368 | -9/Materials | Core integrity fell below 20% 1394 | -9/Materials | Destroyed by G-34 Mercenary with Small Laser Last Messages --------------- S-10 Pest destroyed. Scanalyzer disabled. S-10 Pest destroyed. U-05 Engineer builds a Door. U-05 Engineer lays Concrete. S-10 Pest destroyed. U-05 Engineer lays Concrete. Destroyed Welding Torch. U-05 Engineer lays Concrete. K-01 Serf collects debris. U-05 Engineer lays Concrete. U-05 Engineer builds a Wall. Rocket Launcher destroyed. Destroyed Rocket Launcher. U-05 Engineer destroyed. U-05 Engineer lays Concrete. Slammed into K-01 Serf. U-05 Engineer lays Concrete. K-01 Serf destroyed. K-01 Serf collects debris. Map ----- +----------------------------------------------------+ | ### *%# #################?????? | | "" # #?????? | | """ * # #?????? | | "R" #%= =%! #?????? | | " " +[ * #?????? | | #*= [ """"" #?????? | | # [ """"" ??????? | | #### * """"" ??????? | | #### ## ###+#########????? | | ^ +????? | | ## ##?###### | | ???## ######### #?"T" # | | ????# #???????# [/ #? # | | ????#######???????# // # """# | | ??????????????????# # """# | | ??????????????????# g + """# | | ??????????#########+#### # # | | ?????????# #g # ! """# | | ?????????# """ """ """ # #? """# | | ???????????""" """ """ # # """# | | ????????????"" """ """ # + # | | ???????????? # # # | | ???????????? ! # ######### | | ????????????############ # #? | | ????????????????# # # #? | | ????????????????# # @# """#? | | ????????????????# + + """#? | | ????????????????# """ # # """#? | | ????????????????# """ # # #? | | ????????????????# """?###########? | | ????????????????######????????????? | | ??????????????????????????????????? | | ??????????????????????????????????? | | ??????????????????????????????????? | | ??????????????????????????????????? | | ??????????????????????????????????? | | ??????????????????????????????????? | | ??????????????????????????????????? | | ??????????????????????????????????? | | ??????????????????????????????????? | | ??????????????????????????????????? | | | | | | | | | | | | | | | | | | | +----------------------------------------------------+ Best States ------------- Heat Dissipation 28 Energy Generation 14 Energy Capacity 250 Matter Stores 300 Matter Capacity 300 Sight Range 16 Terrain Scan Density 10 Armor Coverage 300 Evasion (%) 50 Recoil Reduction 4 Offensive Hacking 20 Item Schematics ----------------- None Robot Schematics ------------------ None Fabricated ------------ Nothing Repaired ---------- Nothing Studied --------- None Alien Tech Used ----------------- None Achievements -------------- None Challenges ------------ None Game ------ Seed FusionLinkedWall Manual? 0 Play Time 00:22:17 Cumulative 9.5 hours Start 2026.07.13 @ 16:52:41 End 2026.07.14 @ 01:47:26 Sessions 5 Manual Loads 0 Difficulty Rogue Special Mode None Game No. 23 Rogue 23 Adventurer 0 Explorer 0 Win Type - Total 0 Types 0/0/0/0/0/0/0/0/0/0 Lore% 14 Gallery% 10 Achievement% 11 Wizard Run 0 Options --------- Layout 1 ASCII 0 Keyboard 1 Movement Arrows Keybinds 0 Fullscreen 1 Font 36/SmallcapsGlow++ Map View 53x45 Zoom Use 0% Tactical HUD 0 Map Filters NONE Filters NONE Steam 1 RUN: 934fefd3-75aa-4c94-a10c-2debd0ef01df